bitfinex-derivatives/quotes_ETHF0:USTF0_20260131
["timestamp","ask_amount","ask_price","bid_price","bid_amount"]
[1769831151502,5.93e-06,2698.6,2697.7,2.176]
[1769831151503,3.52943106,2698.6,2698.0,3.61646434]
[1769831151692,3.52942513,2698.5,2697.9,0.18561]
[1769831152001,3.52942513,2698.3,2697.9,0.18561]
[1769831152201,3.52942513,2698.3,2697.6,3.61646434]
[1769831152402,7.70024398,2698.2,2697.9,0.18561]
[1769831152702,7.70024398,2698.2,2697.6,3.61646434]
[1769831152703,3.52942513,2698.2,2697.6,3.61646434]
[1769831152903,3.52942513,2698.2,2697.4,3.61646434]
[1769831153097,3.52942513,2698.0,2697.3,3.573]
[1769831153506,7.42785669,2697.9,2697.3,3.573]
[1769831153800,3.52942513,2697.9,2697.3,3.573]
[1769831154190,4.03640113,2697.8,2697.3,7.37511434]
[1769831154594,4.03640113,2697.8,2697.4,3.61646434]
[1769831154996,7.56582626,2698.0,2697.4,3.61646434]
[1769831155195,7.64022323,2697.9,2697.4,3.61646434]
[1769831155499,3.52942513,2697.9,2697.4,3.61646434]
[1769831156001,4.1107981,2697.8,2697.4,3.61646434]
[1769831157202,4.1107981,2697.8,2697.4,2.80116744]
[1769831158704,4.1107981,2697.8,2697.4,2.98680744]
[1769831162104,4.1107981,2697.8,2697.4,0.18564]
[1769831162302,3.52942513,2697.7,2697.4,0.18564]
[1769831162503,3.52942513,2697.7,2697.3,3.573]
[1769831162807,4.02400807,2697.6,2697.3,3.573]
[1769831163209,3.52942513,2697.6,2697.4,0.18564]
[1769831163411,4.01308246,2697.5,2697.4,0.18564]
[1769831164210,7.54250759,2697.5,2697.4,0.18564]
[1769831164610,3.52942513,2697.5,2697.4,0.18564]
[1769831164909,7.53486501,2697.5,2697.4,0.18564]
[1769831165809,4.00543988,2697.5,2697.4,0.18564]
[1769831166111,4.00361539,2697.6,2697.4,0.18564]
[1769831166305,7.53304052,2697.6,2697.4,0.18564]
[1769831166612,3.81291714,2697.5,2697.4,0.13333691]
[1769831166807,3.81291714,2697.5,2697.0,3.62354885]
[1769831167115,3.67702067,2697.4,2697.0,0.00475804]
[1769831167510,1.22325428,2697.9,2697.0,0.00475804]
[1769831167511,7.73707115,2697.3,2697.0,0.00475804]
[1769831167707,3.67702067,2697.2,2696.9,1.34929374]
[1769831167910,3.67702067,2697.2,2696.9,0.37569513]
[1769831168112,7.82818553,2697.1,2696.9,0.37569513]
[1769831168514,3.67226263,2697.1,2696.9,0.37569513]
[1769831168709,4.1559229,2697.0,2696.9,0.37569513]
[1769831169016,4.1559229,2697.0,2696.9,0.37828869]
[1769831170106,7.59645524,2697.2,2696.9,0.00259356]
[1769831170412,3.64175344,2697.2,2696.9,0.00259356]
[1769831170817,3.9547018,2697.1,2696.9,0.00259356]
[1769831171206,3.63878182,2697.0,2696.9,0.00259356]
[1769831171518,4.00591113,2697.0,2696.9,0.00259356]
[1769831171912,7.64469295,2697.1,2696.9,0.00259356]
[1769831172304,3.63878182,2697.1,2696.9,0.00259356]
[1769831172614,3.95079035,2697.0,2696.9,0.00259356]
[1769831173419,2.56079035,2697.0,2696.9,0.00259356]
[1769831173917,3.63726727,2697.3,2696.9,0.00259356]
[1769831174212,3.88726438,2697.2,2696.9,0.00259356]
[1769831174414,7.52453165,2697.2,2696.9,0.00259356]
[1769831174803,3.63726727,2697.2,2696.9,0.00259356]
[1769831175206,4.29596366,2697.1,2696.9,0.00259356]
[1769831175513,7.92928955,2697.1,2696.9,0.00259356]
[1769831175910,3.63332589,2697.1,2696.9,0.00259356]
[1769831176316,7.84997247,2697.0,2696.8,0.18569]
[1769831176709,3.63332589,2697.0,2696.8,0.18569]
[1769831177004,4.21664658,2696.9,2696.8,0.18569]
[1769831177311,7.90168459,2696.9,2696.8,0.19003535]
[1769831177712,3.68503801,2696.9,2696.8,0.19003535]
[1769831177918,7.7123057,2696.9,2696.8,0.19003535]
[1769831178316,4.02726769,2696.9,2696.8,0.19003535]
[1769831178818,7.71741419,2697.0,2696.8,0.19003535]
[1769831179216,3.68503801,2697.0,2696.8,0.19003535]
[1769831179419,4.04000759,2696.9,2696.8,0.19003535]
[1769831180220,4.03741403,2696.9,2696.8,0.19003535]
[1769831180719,3.68505125,2696.8,2696.2,3.80452081]
[1769831180916,3.68505125,2696.8,2696.2,0.18573]
[1769831181120,7.76376669,2696.7,2696.2,0.18573]
[1769831181420,3.66498339,2696.7,2696.2,3.80452081]
[1769831181721,4.0987833,2696.6,2696.2,3.80452081]
[1769831181914,4.0987833,2696.6,2696.2,3.80848151]
[1769831186423,4.6487833,2696.6,2696.2,3.80848151]
[1769831187025,0.00353062,2696.7,2696.2,4.84600579]
[1769831187225,0.00353062,2696.7,2696.3,3.61879081]
[1769831187717,3.74722307,2696.6,2696.3,3.61879081]
[1769831187919,0.00353062,2696.7,2696.4,0.18571]
[1769831188118,3.69429923,2697.2,2696.5,3.61879081]
[1769831188320,3.45962919,2696.6,2696.5,3.61879081]
[1769831188523,0.62829499,2697.1,2696.5,3.61879081]
[1769831188726,3.81291714,2697.1,2696.5,3.61879081]
[1769831189027,5.65140691,2697.1,2696.5,3.61879081]
[1769831189330,3.81614029,2697.1,2696.5,3.61879081]
[1769831189525,1.83526662,2697.0,2696.5,3.61879081]
[1769831189928,5.64818376,2697.0,2696.5,3.61879081]
[1769831191032,5.64818376,2697.0,2696.5,3.80450081]
[1769831191727,3.81291714,2696.9,2696.5,0.18571]
[1769831192335,0.56641024,2696.8,2696.5,0.18571]
[1769831192531,0.56641024,2696.8,2696.5,3.80450081]
[1769831196535,7.45e-06,2696.8,2696.5,3.80450081]
[1769831196932,7.45e-06,2696.8,2696.6,4.06522494]
[1769831205246,7.45e-06,2696.8,2696.7,0.18569]
[1769831207752,7.45e-06,2696.8,2696.6,2.67521494]
[1769831207953,3.63763667,2696.8,2696.2,0.0039607]
[1769831208151,3.63763667,2696.8,2696.7,0.18569]
[1769831208349,3.63763667,2696.8,2696.2,0.0039607]
[1769831209154,3.63763667,2696.8,2696.7,0.18569]
[1769831209355,3.63763667,2696.8,2696.2,0.0039607]
[1769831210149,3.63763667,2696.8,2696.7,0.18569]
[1769831210452,3.63763667,2696.8,2696.2,0.0039607]
[1769831211157,3.63763667,2696.8,2696.7,0.18569]
[1769831211353,3.63763667,2696.8,2696.2,0.0039607]
[1769831212155,3.63763667,2696.8,2696.7,0.18569]
[1769831212355,3.63763667,2696.8,2696.2,0.0039607]
[1769831213356,3.63763667,2696.8,2696.7,0.18569]
[1769831213551,3.63763667,2696.8,2696.2,0.0039607]
[1769831214146,3.63763667,2696.8,2696.7,0.18569]
[1769831214358,3.63763667,2696.8,2696.2,0.0039607]
[1769831215159,3.63763667,2696.8,2696.7,0.18569]
[1769831215358,3.63763667,2696.8,2696.2,0.0039607]
[1769831216357,3.63763667,2696.8,2696.7,0.18569]
[1769831216652,3.63763667,2696.8,2696.7,0.1663625]
[1769831221065,3.63763667,2696.8,2696.2,0.0039607]
[1769831221364,3.63763667,2696.8,2696.7,0.18569]
[1769831221563,3.63763667,2696.8,2696.2,0.0039607]
[1769831222164,3.63763667,2696.8,2696.7,0.18569]
[1769831222861,7.45e-06,2696.8,2696.7,3.79349149]
[1769831223063,0.00322315,2697.1,2696.7,3.60780149]
[1769831223269,3.63762922,2697.7,2697.0,3.79347149]
[1769831223568,4.01889471,2697.4,2697.0,3.79347149]
[1769831223972,3.88673368,2697.6,2697.0,3.79347149]
[1769831224163,3.64235568,2697.6,2697.0,3.79347149]
[1769831224464,4.06911147,2697.5,2697.0,3.79347149]
[1769831224869,3.63762922,2697.4,2696.2,0.0039607]
[1769831225063,3.63762922,2697.4,2696.4,0.18571]
[1769831225262,3.63762922,2697.2,2696.4,0.18571]
[1769831225662,3.63762922,2697.0,2696.4,0.18571]
[1769831226065,3.63762922,2696.8,2696.4,0.18571]
[1769831226371,3.68909681,2696.7,2696.4,0.18571]
[1769831227074,7.26047965,2696.7,2696.4,0.18571]
[1769831227370,3.57138284,2696.7,2696.4,0.18571]
[1769831227671,3.96138202,2696.6,2696.4,0.18571]
[1769831229272,7.53276486,2696.6,2696.4,0.18571]
[1769831229461,3.57138284,2696.5,2696.2,0.0039607]
[1769831229869,3.87740615,2696.4,2696.2,0.0039607]
[1769831237479,7.44878899,2696.4,2696.2,0.0039607]
[1769831237878,3.57138284,2696.4,2696.2,0.0039607]
[1769831238077,3.91855029,2696.3,2696.2,0.0039607]
[1769831238670,7.48993313,2696.3,2696.2,0.0039607]
[1769831239075,3.91855029,2696.3,2696.2,0.0039607]
[1769831240384,3.54677029,2696.3,2696.2,0.0039607]
[1769831240590,3.17475029,2696.3,2696.2,0.0039607]
[1769831241184,2.77519029,2696.3,2696.2,0.0039607]
[1769831241385,1.99348029,2696.3,2696.2,0.0039607]
[1769831241585,1.23846029,2696.3,2696.2,0.0039607]
[1769831241782,0.86110029,2696.3,2696.2,0.0039607]
[1769831242086,0.47693029,2696.3,2696.2,0.0039607]
[1769831243385,0.08326029,2696.3,2696.2,0.0039607]
[1769831243585,2.9e-07,2696.3,2696.2,0.0039607]
[1769831247082,3.19922313,2696.3,2696.0,0.18574]
[1769831247784,4.02367831,2696.2,2695.5,7.2295052]
[1769831247979,4.02367831,2696.2,2695.5,3.674]
[1769831248192,1.22361806,2697.0,2695.5,0.00442271]
[1769831248490,2.51256882,2696.1,2696.0,3.5555052]
[1769831248678,3.43779555,2697.4,2696.0,3.5555052]
[1769831248881,4.30531882,2697.1,2696.1,0.18573]
[1769831249085,4.22937754,2697.3,2696.2,0.18573]
[1769831249086,4.30531882,2697.3,2696.2,0.18573]
[1769831249284,3.57138284,2697.2,2696.2,0.18573]
[1769831249479,3.57138284,2696.9,2696.2,0.18573]
[1769831250388,3.57138284,2696.7,2696.2,0.18573]
[1769831251090,4.12265516,2696.6,2696.2,0.18573]
[1769831251487,7.694038,2696.6,2696.2,0.18573]
[1769831251791,3.57138284,2696.6,2696.2,0.18573]
[1769831252184,4.22513159,2696.5,2696.2,0.18573]
[1769831252791,3.57138284,2697.0,2696.4,3.7412152]
[1769831253194,7.53312844,2696.9,2696.4,3.7412152]
[1769831253693,3.57138284,2696.9,2696.4,3.7412152]
[1769831253894,3.91000115,2696.8,2696.4,3.7412152]
[1769831254592,3.57138284,2696.8,2696.4,0.18571]
[1769831254985,3.91000115,2696.7,2696.4,0.18571]
[1769831255393,3.91000115,2696.7,2696.4,3.7412152]
[1769831255691,3.87196323,2696.9,2696.4,3.7412152]
[1769831255891,7.44334607,2696.9,2696.4,3.7412152]
[1769831256292,3.57138284,2696.9,2696.4,3.7412152]
[1769831256492,4.12307214,2696.8,2696.4,3.7412152]
[1769831260098,7.9875008,2696.8,2696.4,3.7412152]
[1769831260295,7.9875008,2696.8,2696.4,0.18571]
[1769831260499,3.86442866,2697.0,2696.4,3.81347793]
[1769831260691,3.57168127,2696.7,2696.4,3.81347793]
[1769831260887,3.15418127,2696.7,2696.4,3.81347793]
[1769831261099,7.27657485,2696.9,2696.4,3.81347793]
[1769831261296,3.86442866,2696.9,2696.4,3.81347793]
[1769831261496,8.08404457,2696.9,2696.4,3.81347793]
[1769831262701,3.86442866,2696.8,2696.4,3.81347793]
[1769831262901,3.86442866,2696.8,2696.4,0.18571]
[1769831263114,3.01011386,2696.7,2696.4,0.18571]
[1769831263314,2.15105386,2696.7,2696.4,0.18571]
[1769831263515,1.31043386,2696.7,2696.4,0.18571]
[1769831263707,0.48755386,2696.7,2696.4,0.18571]
[1769831263907,3.86e-06,2696.7,2696.4,0.18571]
[1769831267218,3.86442866,2696.6,2695.8,5.889]
[1769831267508,0.00472646,2697.6,2695.8,5.889]
[1769831267509,3.86442866,2696.4,2695.8,5.889]
[1769831267712,3.86442866,2696.4,2696.0,0.18574]
[1769831267910,4.01354756,2696.3,2696.0,0.18574]
[1769831269322,7.87797622,2696.3,2695.8,5.889]
[1769831269618,1.22361806,2697.4,2695.3,9.61143668]
[1769831269619,3.86442866,2696.2,2695.3,8.41162939]
[1769831269810,3.86442866,2696.2,2695.3,12.03939732]
[1769831270010,3.86442866,2696.1,2695.3,3.62776793]
[1769831270516,3.86442866,2695.9,2695.3,3.62776793]
[1769831270708,4.24661126,2696.0,2695.5,3.62776793]
[1769831270910,2.39163126,2695.8,2695.6,3.81353793]
[1769831271214,1.22361806,2697.0,2695.6,0.18577]
[1769831271419,3.71818928,2695.7,2695.6,0.18577]
[1769831271617,1.79065632,2695.7,2695.4,3.62776793]
[1769831271817,9.2e-07,2695.7,2695.4,3.62776793]
[1769831272415,9.2e-07,2695.7,2695.6,3.81353793]
[1769831273113,3.86442866,2696.3,2695.7,0.18576]
[1769831273620,8.01522174,2696.2,2695.7,3.81352793]
[1769831273917,3.86442866,2696.2,2695.7,3.81352793]
[1769831274121,3.86838985,2696.2,2695.7,0.18576]
[1769831274317,8.01522174,2696.1,2695.7,0.18576]
[1769831274617,8.01522174,2696.1,2695.4,3.62776793]
[1769831275218,8.01522174,2696.1,2695.7,0.18576]
[1769831275418,8.01522174,2696.1,2695.4,3.62776793]
[1769831276222,3.86442866,2696.0,2695.7,0.18576]
[1769831276415,3.86442866,2696.0,2695.4,3.62776793]
[1769831276722,2.94324268,2695.9,2695.4,3.62776793]
[1769831276922,2.19623268,2695.9,2695.4,3.62776793]
[1769831277219,5.31396134,2695.9,2695.7,0.18576]
[1769831277420,4.56844134,2695.9,2695.4,3.62776793]
[1769831278120,0.70401268,2695.9,2695.4,3.62776793]
[1769831278316,2.68e-06,2695.9,2695.7,0.18576]
[1769831278621,2.68e-06,2695.9,2695.3,0.0045533]
[1769831278622,3.86443134,2695.9,2695.3,0.0045533]
[1769831280227,3.86443134,2695.9,2695.7,0.18576]
[1769831280428,3.86443134,2695.9,2695.3,0.0045533]
[1769831282622,3.86443134,2695.9,2695.1,4.144]
[1769831283626,3.86443134,2695.9,2695.1,4.14831487]
[1769831285330,3.86443134,2695.9,2695.7,0.0817849]
[1769831285629,3.86443134,2695.9,2695.1,4.14831487]
[1769831286031,3.86443134,2695.9,2695.7,0.18576]
[1769831286233,3.86443134,2695.9,2695.1,4.14831487]
[1769831286435,3.86443134,2695.9,2695.1,7.7760828]
[1769831287431,3.86443134,2695.9,2695.7,0.18576]
[1769831294132,3.86443134,2695.9,2695.1,7.7760828]
[1769831294133,3.86443134,2695.9,2695.1,4.14831487]
[1769831294838,3.86443134,2695.9,2695.2,3.70731043]
[1769831295134,3.86443134,2695.9,2695.2,3.89310043]
[1769831295733,3.86443134,2695.9,2695.3,0.18579]
[1769831299438,3.86443134,2695.9,2695.1,0.00431487]
[1769831299740,3.86443134,2695.9,2695.3,0.18579]
[1769831300039,3.86443134,2695.9,2695.1,0.00431487]
[1769831301242,3.86443134,2695.9,2695.3,0.18579]
[1769831303537,3.86443134,2695.9,2694.6,4.01472027]
[1769831303538,3.86443134,2695.9,2694.4,3.70731043]
[1769831303737,3.72899893,2695.4,2694.7,0.18583]
[1769831304137,7.59330158,2695.3,2694.7,0.18583]
[1769831304537,3.72899893,2695.3,2694.7,0.18583]
[1769831304741,7.6339757,2695.2,2694.7,0.1890637]
[1769831305041,3.72899893,2695.2,2694.7,3.89637413]
[1769831305340,4.16605445,2695.1,2694.7,3.89637413]
[1769831310949,3.72899893,2696.0,2695.2,3.70731043]
[1769831311242,4.25384688,2695.6,2695.2,3.70731043]
[1769831311744,3.72899893,2695.8,2695.2,3.70731043]
[1769831311943,3.96380382,2695.5,2695.2,3.70731043]
[1769831312144,7.69280275,2695.7,2695.2,3.70731043]
[1769831312437,3.72899893,2695.7,2695.2,3.70731043]
[1769831312743,3.95918765,2695.6,2695.2,3.70731043]
[1769831316145,3.95918765,2695.6,2695.1,0.1858]
[1769831316146,7.68818658,2695.6,2695.1,3.89311043]
[1769831316550,3.72899893,2695.6,2695.1,3.89311043]
[1769831317046,4.08830834,2695.5,2695.1,3.89311043]
[1769831318451,7.60794965,2695.5,2695.1,0.1858]
[1769831318949,3.51964131,2695.5,2695.1,0.1858]
[1769831319150,3.99044699,2695.4,2695.1,0.1858]
[1769831319547,7.5100883,2695.4,2695.1,0.1858]
[1769831319747,3.51964131,2695.3,2695.1,0.1858]
[1769831319948,3.51964131,2695.3,2694.7,0.0032337]
[1769831320149,3.51964131,2695.1,2694.7,0.0032337]
[1769831320445,4.13804791,2695.0,2694.7,0.0032337]
[1769831324754,7.65768922,2695.0,2694.7,0.0032337]
[1769831325154,3.51964131,2695.0,2694.7,0.0032337]
[1769831325450,2.34344311,2694.9,2694.7,3.84868277]
[1769831325657,1.33878311,2694.9,2694.7,3.84868277]
[1769831325855,3.51964131,2695.3,2694.7,3.84868277]
[1769831326150,4.29076701,2695.2,2694.7,3.84868277]
[1769831326356,4.29076701,2695.2,2694.8,0.18583]
[1769831326756,3.79524765,2695.2,2695.0,3.84542907]
[1769831326958,3.51964131,2695.6,2695.0,3.84542907]
[1769831327354,7.53362246,2695.5,2695.0,3.84542907]
[1769831327555,4.01398115,2695.5,2695.0,3.84542907]
[1769831327754,3.51964131,2695.5,2695.0,0.18581]
[1769831328154,7.41070105,2695.4,2695.0,0.18581]
[1769831328554,3.51964131,2695.4,2695.0,0.18581]
[1769831328758,4.07456578,2695.3,2695.0,0.18581]
[1769831329451,4.07456578,2695.3,2695.0,3.84542907]
[1769831330059,4.04168107,2695.5,2695.0,3.84542907]
[1769831330255,7.56132238,2695.5,2695.0,3.84542907]
[1769831330455,3.51964131,2695.5,2695.0,3.84542907]
[1769831330758,4.22864164,2695.4,2695.0,3.84542907]
[1769831331158,7.51374609,2695.6,2695.1,3.84541907]
[1769831331360,7.51374609,2695.6,2695.2,0.1858]
[1769831331560,3.51964131,2695.6,2695.2,0.1858]
[1769831331960,4.17106107,2695.5,2695.2,0.1858]
[1769831336667,3.39510107,2695.5,2695.2,0.1858]
[1769831336968,2.61700107,2695.5,2695.2,0.1858]
[1769831337168,1.85189107,2695.5,2695.2,3.84541907]
[1769831337371,1.48001107,2695.5,2695.2,3.84541907]
[1769831337565,1.48001107,2695.5,2695.2,0.1858]
[1769831338971,4.99965238,2695.5,2695.2,0.1858]
[1769831340464,1.48001107,2695.5,2695.2,0.1858]
[1769831341171,4.99965238,2695.5,2695.2,0.1858]
[1769831343265,3.5236025,2696.2,2695.6,0.18577]
[1769831343471,4.99965238,2696.1,2695.5,3.65961907]
[1769831343665,3.51964131,2696.0,2695.5,3.65961907]
[1769831344063,3.82064741,2695.9,2695.5,3.65961907]
[1769831344265,3.02193741,2695.9,2695.7,0.18576]
[1769831344565,1.71497741,2695.9,2695.7,0.18576]
[1769831344769,0.86743741,2695.9,2695.7,0.18576]
[1769831344964,7.41e-06,2695.9,2695.7,0.18576]
[1769831345266,0.00396119,2696.2,2695.7,3.84537907]
[1769831345479,1.48397226,2696.2,2695.7,3.84537907]
[1769831345679,4.0653836,2696.1,2695.7,3.84537907]
[1769831346972,4.0653836,2696.1,2695.8,0.18576]
[1769831347766,3.6892636,2696.1,2695.8,0.18576]
[1769831347966,2.8865736,2696.1,2695.8,0.18576]
[1769831348272,2.1069136,2696.1,2695.8,3.94355613]
[1769831348471,1.3201236,2696.1,2695.8,3.75779613]
[1769831348672,2.21293795,2697.6,2696.5,0.18571]
[1769831348974,4.09492223,2697.2,2696.5,0.18571]
[1769831349172,1.48001107,2697.1,2696.5,0.18571]
[1769831349562,4.27475607,2697.0,2696.5,0.18571]
[1769831350575,1.48001107,2696.9,2696.5,0.18571]
[1769831350779,5.20013873,2696.9,2696.5,0.18571]
[1769831351073,2.23166619,2696.8,2696.6,0.1857]
[1769831351274,0.41240603,2696.8,2696.7,0.18569]
[1769831351479,6.03e-06,2696.8,2696.7,0.18569]
[1769831352181,6.03e-06,2696.8,2696.6,0.00353481]
[1769831352182,3.72013369,2696.8,2696.6,0.00353481]
[1769831352978,3.72013369,2696.8,2696.2,3.75779613]
[1769831353773,3.72013369,2696.8,2695.9,2.356]
[1769831353774,3.72012766,2696.7,2695.9,6.11379613]
[1769831353975,3.72012766,2696.6,2695.9,6.11816404]
[1769831354177,3.72012766,2696.5,2695.9,6.11816404]
[1769831354569,3.50038239,2696.4,2696.0,3.75779613]
[1769831354773,2.57047239,2696.4,2696.0,3.75779613]
[1769831354974,4.30465506,2696.5,2696.0,3.75779613]
[1769831355276,1.48001107,2696.6,2696.3,0.18572]
[1769831355581,3.39793506,2696.4,2696.3,0.18572]
[1769831355776,4.14416438,2696.5,2696.3,0.18572]
[1769831355980,1.48001107,2696.6,2696.3,0.18572]
[1769831356280,4.14416438,2696.5,2696.3,0.18572]
[1769831356778,3.75439438,2696.5,2696.3,0.18572]
[1769831357081,2.58508438,2696.5,2696.3,0.18572]
[1769831357274,1.81446438,2696.5,2696.3,0.18572]
[1769831357578,0.66336438,2696.5,2696.3,0.18572]
[1769831357778,4.38e-06,2696.5,2696.3,0.18572]
[1769831368080,3.72012766,2696.3,2695.9,0.00436791]
[1769831368275,3.72012766,2696.3,2695.7,3.75779613]
[1769831368482,4.13207668,2696.2,2695.7,3.75779613]
[1769831368682,4.13207668,2696.2,2696.0,0.18574]
[1769831368882,4.13207668,2696.2,2695.7,3.75779613]
[1769831369087,4.13207668,2696.2,2696.0,0.18574]
[1769831369280,1.08466107,2696.1,2695.5,7.07279613]
[1769831369585,3.50063863,2696.0,2695.6,3.75779613]
[1769831369785,2.91872295,2696.0,2695.6,3.75779613]
[1769831370088,1.57401295,2696.0,2695.6,3.75779613]
[1769831370381,0.17302288,2696.0,2695.6,3.75907007]
[1769831370685,2.88e-06,2696.0,2695.6,3.75907007]
[1769831371188,2.88e-06,2696.0,2695.8,0.18575]
[1769831371588,2.88e-06,2696.0,2695.8,3.94354613]
[1769831371889,3.72012766,2696.4,2695.8,3.94354613]
[1769831372089,4.80478873,2696.3,2695.9,0.18575]
[1769831372291,7.74622551,2696.3,2695.9,0.18575]
[1769831372489,1.08466107,2696.2,2695.9,0.18575]
[1769831372992,4.19341182,2696.1,2695.9,0.18575]
[1769831373286,4.94367182,2696.2,2695.9,0.18575]
[1769831373688,3.39690075,2696.0,2695.9,0.18575]
[1769831373888,3.86941357,2696.1,2695.8,3.75779613]
[1769831374090,4.20887464,2696.1,2695.8,3.75779613]
[1769831374291,0.71060107,2696.1,2695.9,0.18575]
[1769831374494,3.42809357,2696.0,2695.9,0.18575]
[1769831374792,2.54634357,2696.0,2695.9,0.18575]
[1769831374994,1.66540357,2696.0,2695.9,0.18575]
[1769831375193,0.80165357,2696.0,2695.9,0.18575]
[1769831375394,3.72012766,2696.6,2695.9,3.94354613]
[1769831375794,4.07753368,2696.2,2695.9,3.94354613]
[1769831375995,3.72012766,2696.6,2695.9,3.94354613]
[1769831376183,4.43072873,2696.5,2695.9,3.94354613]
[1769831376387,7.79766134,2696.5,2695.9,3.94354613]
[1769831376592,3.72012766,2696.5,2695.9,3.94354613]
[1769831376996,7.70693645,2696.4,2695.9,3.94354613]
[1769831377496,3.52757062,2696.4,2695.9,3.94354613]
[1769831377794,4.24535835,2696.3,2695.9,3.94354613]
[1769831377989,7.77292897,2696.3,2695.9,0.18575]
[1769831378495,3.52757062,2696.3,2695.9,0.18575]
[1769831378795,3.5854413,2696.2,2695.9,0.18575]
[1769831378994,7.30148459,2696.2,2695.7,3.74727565]
[1769831379195,8.01208566,2696.2,2695.9,0.18574]
[1769831379387,4.42664436,2696.2,2695.6,0.00127394]
[1769831379592,3.99985412,2696.1,2695.9,0.18574]
[1769831379793,3.99985412,2696.1,2695.6,3.5836331]
[1769831381196,3.99985412,2696.1,2695.9,0.18574]
[1769831381396,3.99985412,2696.1,2695.6,3.5836331]
[1769831382398,3.99985412,2696.1,2695.9,0.18574]
[1769831383795,7.71589741,2696.1,2695.9,0.18574]
[1769831384500,3.99985412,2696.1,2695.9,0.18574]
[1769831389407,7.71589741,2696.1,2695.6,0.00127394]
[1769831389606,3.99985412,2696.1,2695.6,3.5836331]
[1769831391309,3.99985412,2696.1,2695.9,0.18574]
[1769831391499,3.99985412,2696.1,2695.6,3.5836331]
[1769831392108,7.71589741,2696.1,2695.9,0.18574]
[1769831392409,4.42664436,2696.0,2695.4,4.191]
[1769831392606,3.71604329,2696.0,2695.4,4.191]
[1769831392908,1.22474166,2697.0,2695.4,4.37678]
[1769831392909,3.71604329,2695.8,2695.4,4.37678]
[1769831393405,4.21873481,2695.7,2695.4,4.37678]
[1769831394708,2.82201345,2695.7,2695.4,7.95913916]
[1769831396411,3.71604329,2696.2,2695.5,3.58235916]
[1769831396614,3.71604329,2696.2,2695.6,3.76812916]
[1769831396811,4.23225071,2695.9,2695.6,3.76812916]
[1769831397019,4.76374225,2696.1,2695.6,3.76812916]
[1769831397311,0.71060107,2696.1,2695.6,3.76812916]
[1769831397512,4.23225071,2696.0,2695.6,3.76812916]
[1769831398807,4.23225071,2696.0,2695.7,0.18576]
[1769831399010,1.07e-06,2695.9,2695.7,0.18576]
[1769831399313,3.89931971,2696.1,2695.7,0.18576]
[1769831399610,3.71604329,2696.2,2695.7,0.18576]
[1769831400009,7.98621344,2696.1,2695.7,0.18576]
[1769831400410,3.71604329,2696.1,2695.7,0.18576]
[1769831400610,4.27017015,2696.0,2695.7,3.76811916]
[1769831401109,3.71604329,2696.4,2695.7,3.76811916]
[1769831401610,3.71604329,2696.2,2695.8,0.18576]
[1769831402011,4.11096279,2696.1,2695.8,3.76811916]
[1769831402210,3.32479279,2696.1,2696.0,0.18574]
[1769831402516,0.00447969,2697.1,2695.5,3.58235916]
[1769831402911,3.91400173,2696.3,2695.2,9.63627623]
[1769831403110,1.37877587,2697.0,2695.2,13.21863539]
[1769831403314,3.91400173,2696.9,2695.2,3.58235916]
[1769831403516,4.24782752,2696.8,2695.7,0.18576]
[1769831403815,2.21411674,2697.0,2695.7,0.18576]
[1769831404012,4.24652833,2696.9,2695.7,0.18576]
[1769831404315,3.71604329,2696.7,2695.7,0.18576]
[1769831404717,3.71604329,2696.5,2695.7,0.18576]
[1769831405116,3.71604329,2696.3,2695.7,0.18576]
[1769831405318,3.71604329,2696.3,2695.2,3.58235916]
[1769831405713,4.20550603,2696.2,2695.7,0.18576]
[1769831405918,3.82617603,2696.2,2695.6,3.58235916]
[1769831407320,3.82617603,2696.2,2695.9,0.18575]
[1769831412120,7.53192353,2696.2,2695.9,0.18575]
[1769831413417,7.14006353,2696.2,2696.0,0.18574]
[1769831413625,2.37442603,2696.2,2696.0,0.18574]
[1769831413826,1.50726603,2696.2,2696.0,0.18574]
[1769831414122,4.04299353,2696.2,2696.0,0.18574]
[1769831414326,3.25275353,2696.2,2696.0,0.18574]
[1769831414527,3.88098799,2696.1,2696.0,0.18574]
[1769831414725,2.90940799,2696.1,2696.0,0.18574]
[1769831415023,1.48789799,2696.1,2696.0,0.18574]
[1769831415224,0.55176799,2696.1,2696.0,0.18574]
[1769831415426,2.57700152,2696.2,2696.0,0.18574]
[1769831415626,1.83066152,2696.2,2696.0,0.18574]
[1769831415825,3.8318673,2696.1,2696.0,0.18574]
[1769831416128,2.4910173,2696.1,2696.0,0.18574]
[1769831416423,1.1677373,2696.1,2696.0,0.18574]
[1769831416726,7.3e-06,2696.1,2696.0,0.18574]
[1769831417527,1.22511213,2697.0,2696.0,0.18574]
[1769831417729,3.7057475,2696.8,2696.0,0.18574]
[1769831417924,3.7057475,2696.8,2696.1,0.18574]
[1769831418531,3.7057475,2696.6,2696.1,0.18574]
[1769831419229,2.8473275,2696.4,2696.2,0.18573]
[1769831419426,1.9679275,2696.4,2696.2,0.13757802]
[1769831419735,0.6805275,2696.4,2696.2,0.13757802]
[1769831419920,2.88097758,2696.3,2695.6,4.76222627]
[1769831420124,1.99417758,2696.3,2695.6,4.76222627]
[1769831420324,0.02663973,2696.7,2696.2,0.18573]
[1769831420521,1.99417758,2696.9,2696.2,0.18573]
[1769831420727,4.24730143,2696.8,2695.6,3.53711414]
[1769831420930,3.43922887,2697.0,2695.6,3.53711414]
[1769831421133,1.89626636,2696.7,2695.6,3.53711414]
[1769831421329,1.89626636,2696.7,2695.3,1.22511213]
[1769831421330,1.89626636,2696.7,2695.7,3.53711414]
[1769831421529,3.43922887,2697.0,2695.7,3.53711414]
[1769831421737,4.24855703,2696.9,2695.7,3.53711414]
[1769831421937,2.02918912,2696.7,2695.7,3.53711414]
[1769831422131,2.02918912,2696.7,2696.2,0.18573]
[1769831422333,2.02918912,2696.7,2695.7,3.53711414]
[1769831422541,2.1764516,2696.6,2695.7,3.53711414]
[1769831422739,2.02918912,2696.5,2695.7,3.53711414]
[1769831423538,1.338387,2696.4,2695.7,3.53711414]
[1769831423738,2.97904328,2696.4,2695.7,3.53711414]
[1769831424040,2.60565328,2696.4,2695.7,3.53711414]
[1769831424231,2.60565328,2696.4,2696.2,0.18573]
[1769831424541,1.62374628,2696.3,2695.4,3.53711414]
[1769831424838,4.08818189,2696.2,2695.4,3.53711414]
[1769831425438,4.08818189,2696.6,2695.4,3.53711414]
[1769831425639,1.22511213,2696.7,2695.4,3.53711414]
[1769831425942,4.06152938,2696.6,2695.4,3.53711414]
[1769831426134,4.06152938,2696.6,2695.8,0.18575]
[1769831426341,1.43927401,2696.5,2695.8,0.18575]
[1769831426641,4.06152938,2696.4,2695.8,0.18575]
[1769831426843,1.43927401,2696.3,2695.8,0.18575]
[1769831427141,3.90550646,2696.2,2695.8,0.18575]
[1769831427344,5.34377483,2696.2,2695.8,0.18575]